bitfinex-derivatives/quotes_SOLF0:USTF0_20250501
["timestamp","ask_amount","ask_price","bid_price","bid_amount"]
[1746095095058,6.5826,151.91,151.86,36.3845]
[1746095095556,6.5821,151.92,151.87,6.5842]
[1746095095748,6.5821,151.92,151.86,29.8]
[1746095095948,1.9157,151.96,151.86,29.8]
[1746095096152,6.5818,151.93,151.88,6.5835]
[1746095096759,6.5818,151.93,151.89,6.5833]
[1746095097052,4.2107,151.97,151.9,28.66]
[1746095097248,12.47907751,151.99,151.9,35.2429]
[1746095097447,6.5814,151.94,151.9,28.66]
[1746095097648,12.47907751,151.99,151.9,28.66]
[1746095097850,28.66,152.0,151.9,28.66]
[1746095098057,6.5809,151.95,151.9,35.2426]
[1746095098358,28.66,152.0,151.9,35.2426]
[1746095098857,6.5813,151.94,151.9,28.66]
[1746095099058,28.66,152.0,151.9,28.66]
[1746095099364,6.5818,151.93,151.9,28.66]
[1746095099856,12.47907751,152.02,151.9,28.66]
[1746095100056,6.581,151.95,151.9,35.2427]
[1746095100253,6.581,151.95,151.9,28.66]
[1746095101161,34.5235,152.03,151.9,28.66]
[1746095101462,1.9588,152.03,151.91,6.1007]
[1746095101663,28.66,152.06,151.92,12.47907751]
[1746095101958,2.0108,152.08,151.92,12.47907751]
[1746095102766,2.0108,152.08,151.92,13.79555986]
[1746095102959,6.5763,152.06,152.01,6.5781]
[1746095103170,6.5763,152.06,152.01,36.3381]
[1746095103761,6.5763,152.06,152.01,29.76]
[1746095104167,41.13907751,152.1,152.01,29.76]
[1746095104168,6.5757,152.07,152.01,29.76]
[1746095104773,4.0826,152.11,152.01,29.76]
[1746095104774,2.0042,152.11,152.01,29.76]
[1746095105071,12.47907751,152.13,152.02,5.973]
[1746095105668,6.5757,152.07,152.02,12.5506]
[1746095106367,6.5762,152.06,152.02,5.973]
[1746095107060,6.5757,152.07,152.02,5.973]
[1746095107575,6.5766,152.05,152.02,5.973]
[1746095107870,12.47907751,152.13,152.02,5.973]
[1746095108067,6.5761,152.06,152.02,5.973]
[1746095109170,42.21907751,152.1,151.98,521.32]
[1746095109374,2.0565,152.09,151.99,29.74]
[1746095109670,2.0565,152.09,152.0,6.5783]
[1746095110072,2.0565,152.09,151.99,29.74]
[1746095110770,6.5763,152.06,151.99,29.74]
[1746095110971,2.0565,152.09,151.99,29.74]
[1746095111472,29.74,152.1,151.99,29.74]
[1746095111972,6.5747,152.08,151.99,29.74]
[1746095112172,29.74,152.1,151.99,29.74]
[1746095112869,6.5747,152.08,152.03,6.5763]
[1746095113075,6.5747,152.08,152.03,29.74]
[1746095113374,29.74,152.1,152.03,29.74]
[1746095113566,6.5749,152.08,152.03,36.3166]
[1746095113765,29.74,152.1,152.03,36.3166]
[1746095114061,29.74,152.1,152.03,29.74]
[1746095114264,6.5753,152.07,152.03,29.74]
[1746095114469,29.74,152.1,152.03,29.74]
[1746095115678,29.74,152.1,152.03,36.3163]
[1746095115975,44.21607751,152.14,152.03,36.3163]
[1746095116167,6.575,152.07,152.03,36.3163]
[1746095117172,6.575,152.07,152.03,29.74]
[1746095117377,2.0022,152.13,152.03,29.74]
[1746095117772,6.575,152.07,152.03,29.74]
[1746095118077,2.0022,152.13,152.03,29.74]
[1746095118276,6.5751,152.07,152.03,36.3163]
[1746095118479,31.737,152.14,152.03,29.74]
[1746095118777,2.0683,152.13,152.03,29.74]
[1746095119184,29.74,152.14,152.03,29.74]
[1746095119476,6.574,152.09,152.05,6.5755]
[1746095119676,29.74,152.14,152.04,3.8791]
[1746095120078,29.74,152.14,152.04,10.4549]
[1746095120279,29.74,152.14,152.04,3.8791]
[1746095120475,29.74,152.14,152.04,5.9121]
[1746095120673,6.5741,152.09,152.05,6.5754]
[1746095121274,29.74,152.14,152.04,8.4949]
[1746095121472,29.74,152.14,152.04,1.9188]
[1746095121680,6.574,152.1,152.05,6.5755]
[1746095121983,29.74,152.14,152.05,6.5755]
[1746095122183,29.74,152.14,152.04,8.4948]
[1746095122381,29.74,152.14,152.04,1.9188]
[1746095123282,6.574,152.1,152.05,6.5755]
[1746095123782,6.574,152.1,152.06,6.5752]
[1746095123978,6.574,152.1,152.04,1.9188]
[1746095124186,6.5741,152.09,152.04,1.9188]
[1746095124487,29.74,152.14,152.05,6.5755]
[1746095124683,6.5739,152.1,152.05,6.5755]
[1746095125586,6.5741,152.09,152.05,6.5755]
[1746095125781,29.74,152.14,152.04,1.9188]
[1746095126282,29.74,152.14,152.06,6.5751]
[1746095126685,6.5739,152.1,152.06,6.5751]
[1746095128486,6.5743,152.09,152.05,6.5756]
[1746095129282,6.5738,152.1,152.05,6.5756]
[1746095129488,37.52284964,152.14,152.04,1.9188]
[1746095130086,37.52284964,152.14,152.06,6.5753]
[1746095130786,6.5738,152.1,152.06,6.5753]
[1746095130989,37.52284964,152.14,152.07,6.5748]
[1746095131186,37.52284964,152.14,152.04,1.9188]
[1746095131490,29.74,152.14,152.06,6.5751]
[1746095131788,6.574,152.09,152.06,6.5751]
[1746095132193,7.78284964,152.13,152.06,6.5751]
[1746095132385,6.574,152.1,152.06,6.5751]
[1746095132988,6.5741,152.09,152.06,6.5751]
[1746095133289,2.0565,152.15,152.07,29.1]
[1746095134595,6.5734,152.11,152.07,29.1]
[1746095134788,6.5734,152.11,152.08,6.5744]
[1746095135091,7.78284964,152.14,152.07,29.1]
[1746095135895,6.5731,152.12,152.09,6.5738]
[1746095136089,7.78284964,152.14,152.09,6.5738]
[1746095137689,6.5731,152.12,152.09,6.5738]
[1746095137884,7.78284964,152.14,152.09,6.5738]
[1746095138395,6.5734,152.11,152.09,6.5738]
[1746095138595,7.78284964,152.14,152.08,6.5742]
[1746095138895,6.5739,152.1,152.04,1.9188]
[1746095139194,6.5739,152.1,152.07,6.5746]
[1746095139493,6.5739,152.1,152.04,1.9188]
[1746095139694,6.5739,152.1,152.07,6.5746]
[1746095140392,6.5733,152.11,152.08,6.5744]
[1746095140597,7.78284964,152.14,152.03,29.1]
[1746095140798,6.5749,152.07,152.04,6.5759]
[1746095141006,7.78284964,152.08,152.0,30.86746329]
[1746095141395,1.9907,152.07,152.0,30.86746329]
[1746095141694,1.9907,152.07,152.0,37.44496329]
[1746095141895,31.0907,152.07,152.0,37.44496329]
[1746095142098,31.0907,152.07,152.0,30.86746329]
[1746095142304,6.5765,152.04,152.0,30.86746329]
[1746095142601,31.0907,152.07,152.0,30.86746329]
[1746095142902,31.0907,152.07,151.99,35.6782]
[1746095143087,31.0907,152.07,151.99,29.1]
[1746095144003,6.5757,152.06,152.01,6.5771]
[1746095144700,6.5758,152.05,152.01,6.5771]
[1746095144906,4.0143,152.1,152.02,6.577]
[1746095145203,6.5756,152.06,152.02,6.577]
[1746095145403,6.5756,152.06,152.01,6.5773]
[1746095145602,7.78284964,152.08,151.99,29.1]
[1746095145806,6.5774,152.02,151.98,29.1]
[1746095146307,6.5773,152.02,151.98,29.1]
[1746095146507,31.0435,152.07,151.98,29.1]
[1746095146805,6.5771,152.02,151.98,29.1]
[1746095147507,6.5776,152.01,151.98,29.1]
[1746095147808,31.0435,152.07,151.98,29.1]
[1746095148004,6.5774,152.02,151.98,35.6788]
[1746095148203,31.0435,152.07,151.98,35.6788]
[1746095148204,31.0435,152.07,151.98,29.1]
[1746095148399,7.78284964,152.05,151.98,29.1]
[1746095148606,3.9552,152.04,151.98,29.1]
[1746095149009,6.5782,152.0,151.98,29.1]
[1746095149208,3.9552,152.04,151.98,29.1]
[1746095149406,29.1,152.03,151.92,10.93854817]
[1746095149713,6.5787,151.99,151.95,6.5798]
[1746095150214,29.1,152.03,151.94,29.1]
[1746095150512,7.78284964,152.02,151.94,29.1]
[1746095150808,7.78284964,152.02,151.94,35.6802]
[1746095151004,1.9107,152.01,151.94,35.6802]
[1746095151507,6.579,151.98,151.94,35.6802]
[1746095152012,1.9107,152.01,151.94,29.1]
[1746095153011,1.9107,152.01,151.95,6.58]
[1746095153309,1.9107,152.01,151.94,29.1]
[1746095154012,6.58,151.96,151.94,29.1]
[1746095154212,6.58,151.96,151.94,35.6804]
[1746095154413,6.58,151.96,151.94,29.1]
[1746095155112,6.5801,151.95,151.94,29.1]
[1746095155507,1.9107,152.01,151.94,29.1]
[1746095156103,6.5794,151.97,151.94,35.6802]
[1746095157115,6.5794,151.97,151.94,29.1]
[1746095157513,6.5797,151.96,151.94,29.1]
[1746095158018,1.9107,152.01,151.94,29.1]
[1746095158317,6.5795,151.97,151.94,29.1]
[1746095158922,6.5798,151.96,151.94,29.1]
[1746095159318,1.9107,152.01,151.94,29.1]
[1746095159510,6.5801,151.95,151.94,29.1]
[1746095159911,1.9107,152.01,151.89,29.1]
[1746095160110,6.5809,151.94,151.89,29.1]
[1746095160315,29.1,151.99,151.89,29.1]
[1746095160711,1.9837,151.98,151.89,29.1]
[1746095161020,4.0862,151.98,151.89,29.1]
[1746095161215,6.5821,151.91,151.89,29.1]
[1746095162219,4.0862,151.98,151.89,29.1]
[1746095162717,6.5817,151.92,151.89,29.1]
[1746095163412,4.0862,151.98,151.89,29.1]
[1746095164025,29.1,151.99,151.9,2.0177]
[1746095164215,1.9107,152.01,151.9,2.0177]
[1746095164522,6.579,151.98,151.94,6.5803]
[1746095165024,6.5784,151.99,151.95,6.5798]
[1746095165319,1.9107,152.01,151.93,28.88]
[1746095165620,6.5782,152.0,151.96,6.5793]
[1746095166019,6.5777,152.01,151.97,6.5788]
[1746095166224,6.5777,152.01,151.94,4.045]
[1746095166725,6.578,152.0,151.97,6.579]
[1746095167523,6.5776,152.01,151.97,6.579]
[1746095168025,6.578,152.0,151.97,6.579]
[1746095169328,6.5759,152.05,151.94,16.51530376]
[1746095169519,3.9689,152.1,151.97,12.47030376]
[1746095169720,3.9689,152.1,151.98,2.0508]
[1746095169919,3.9689,152.1,151.99,28.88]
[1746095170512,6.5749,152.07,151.99,28.88]
[1746095170719,6.5749,152.07,152.0,3.9982]
[1746095171119,6.5745,152.08,152.02,6.5767]
[1746095171626,2.0585,152.1,152.01,6.5774]
[1746095171827,2.0585,152.1,152.0,3.9982]
[1746095172331,6.5749,152.07,152.03,6.5766]
[1746095172622,6.5749,152.07,152.0,3.9982]
[1746095172827,2.0585,152.1,152.0,3.9982]
[1746095173032,6.5749,152.07,152.02,6.5769]
[1746095173329,2.0585,152.1,152.02,6.5769]
[1746095173530,2.0585,152.1,152.0,3.9982]
[1746095174134,6.5758,152.05,152.0,10.576]
[1746095174330,2.0585,152.1,152.0,3.9982]
[1746095174729,2.0585,152.1,152.0,10.5761]
[1746095175033,2.0585,152.1,152.0,3.9982]
[1746095175232,6.5769,152.03,151.99,28.88]
[1746095175428,2.0585,152.1,151.99,28.88]
[1746095175628,12.47030376,152.09,151.99,28.88]
[1746095175827,6.5773,152.02,151.99,28.88]
[1746095176031,28.86,152.07,151.99,28.88]
[1746095176432,6.577,152.03,151.99,35.4583]
[1746095176732,28.86,152.07,151.99,28.88]
[1746095177132,28.86,152.07,151.99,35.4583]
[1746095178330,28.86,152.07,151.99,28.88]
[1746095178531,3.8945,152.06,151.98,2.0508]
[1746095179035,6.5775,152.01,151.98,8.6294]
[1746095179430,3.8945,152.06,151.98,8.6294]
[1746095179630,6.5772,152.02,151.99,6.5783]
[1746095180337,6.5772,152.02,151.98,8.6294]
[1746095180936,3.8945,152.06,151.96,28.86]
[1746095181325,3.8945,152.06,151.97,6.5791]
[1746095181533,3.8945,152.06,151.96,28.86]
[1746095182033,3.8945,152.06,151.97,6.5792]
[1746095182540,6.5781,152.0,151.97,6.5792]
[1746095182732,3.8945,152.06,151.96,35.4395]
[1746095183042,3.8945,152.06,151.96,28.86]
[1746095183239,6.5781,152.0,151.97,6.5792]
[1746095184139,6.5777,152.01,151.98,6.5785]
[1746095184438,3.8945,152.06,151.96,28.86]
[1746095184739,6.5782,152.0,151.97,6.579]
[1746095185243,3.8945,152.06,151.96,28.86]
[1746095185431,3.8945,152.06,151.96,30.9053]
[1746095186245,6.5775,152.01,151.98,6.5786]
[1746095187638,6.5775,152.01,151.97,6.579]
[1746095187838,6.5775,152.01,151.96,30.9053]
[1746095188138,6.5775,152.01,151.97,6.579]
[1746095189539,6.5782,152.0,151.96,37.4848]
[1746095189835,3.8945,152.06,151.96,37.4848]
[1746095190136,6.5747,152.08,152.02,6.5768]
[1746095190344,2.0585,152.1,152.01,38.09041046]
[1746095190534,2.0585,152.1,152.01,30.3]
[1746095191135,6.5752,152.07,152.01,36.8772]
[1746095191834,6.5752,152.07,152.02,6.577]
[1746095192045,6.5746,152.08,152.01,30.3]
[1746095192340,2.0585,152.1,152.03,6.5766]
[1746095192542,2.0585,152.1,152.01,30.3]
[1746095192841,6.5746,152.08,152.03,6.5765]
[1746095193442,6.575,152.07,152.02,6.5769]
[1746095193739,2.0585,152.1,152.01,30.3]
[1746095194043,6.5752,152.07,152.02,6.577]
[1746095194344,2.0585,152.1,152.01,30.3]
[1746095194533,6.5761,152.05,152.0,6.5776]
[1746095194740,30.28,152.08,151.97,30.28]
[1746095194939,30.28,152.08,151.96,4.1192]
[1746095195239,30.28,152.08,151.97,30.28]
[1746095195437,6.5762,152.04,151.97,30.28]
[1746095195944,30.28,152.08,151.97,30.28]
[1746095196136,30.28,152.08,151.96,4.1192]
[1746095196137,12.45736957,152.07,151.96,4.1192]
[1746095196543,6.5769,152.03,151.99,6.5783]
[1746095196742,12.45736957,152.07,151.96,4.1192]
[1746095196931,30.28,152.08,151.96,16.57656957]
[1746095197135,6.575,152.07,151.96,16.57656957]
[1746095197743,6.5754,152.06,152.01,6.5771]
[1746095198043,30.28,152.08,152.0,30.28]
[1746095198841,6.5769,152.03,152.0,30.28]
[1746095199041,6.5769,152.03,151.98,6.5785]
[1746095200145,6.5775,152.01,151.97,6.5791]
[1746095200443,30.28,152.08,151.96,34.3992]
[1746095200644,6.5778,152.01,151.96,38.9046]
[1746095201033,6.5778,152.01,151.96,32.3253]
[1746095201546,6.5778,152.01,151.96,38.9048]
[1746095201742,30.28,152.04,151.96,30.28]
[1746095201944,5.9468,152.03,151.93,521.14]
[1746095202132,5.9468,152.03,151.92,30.28]
[1746095202337,5.9468,152.03,151.94,6.5802]
[1746095202537,5.9468,152.03,151.92,30.28]
[1746095202738,5.9468,152.03,151.93,6.5806]
[1746095203043,5.9468,152.03,151.92,30.28]
[1746095203447,5.9468,152.03,151.95,6.5801]
[1746095203946,6.5788,151.98,151.95,6.5801]
[1746095204747,6.5787,151.99,151.95,6.5801]
[1746095205051,5.9468,152.03,151.92,30.28]
[1746095205348,6.5791,151.98,151.92,30.28]
[1746095205646,5.9468,152.03,151.92,30.28]
[1746095205846,6.5784,151.99,151.92,30.28]
[1746095206246,6.5789,151.98,151.94,6.5802]
[1746095206751,5.9468,152.03,151.92,36.8612]
[1746095207543,5.9468,152.03,151.92,30.28]
[1746095208249,5.9468,152.03,151.94,6.5805]
[1746095208546,5.9468,152.03,151.92,30.28]
[1746095208848,5.9468,152.03,151.92,36.861]
[1746095209153,6.5799,151.96,151.92,30.28]
[1746095209648,6.5799,151.96,151.93,6.5807]
[1746095210349,6.5801,151.95,151.92,36.8611]
[1746095210543,30.3,152.0,151.92,30.28]
[1746095211048,6.5797,151.96,151.93,6.5807]
[1746095211452,6.5797,151.96,151.92,36.8612]
[1746095211846,6.5794,151.97,151.92,30.28]
[1746095212051,30.3,152.0,151.92,30.28]
[1746095212352,6.5807,151.94,151.92,30.28]
[1746095212548,30.3,152.0,151.92,30.28]
[1746095212751,30.3,152.0,151.89,7.79550049]
[1746095213048,30.3,152.0,151.89,38.09550049]
[1746095213254,7.79550049,151.99,151.89,30.3]
[1746095213646,6.5812,151.93,151.9,6.5821]
[1746095213846,7.79550049,151.99,151.89,30.3]
[1746095214955,6.5821,151.91,151.89,30.3]
[1746095215149,30.3,151.96,151.89,30.3]
[1746095216254,6.582,151.91,151.89,30.3]
[1746095216554,38.09550049,151.96,151.87,4.0116]
[1746095216857,6.1089,151.95,151.85,30.3]
[1746095217757,6.5831,151.89,151.86,6.5837]
[1746095217960,6.1089,151.95,151.85,30.3]
[1746095218758,6.5834,151.88,151.85,36.8843]
[1746095218957,6.5834,151.88,151.85,30.3]
[1746095219461,6.5834,151.88,151.85,36.8842]
[1746095219760,6.5834,151.88,151.85,30.3]
[1746095220151,6.5836,151.87,151.85,30.3]
[1746095220351,6.1089,151.95,151.85,30.3]
[1746095220659,6.5835,151.88,151.85,30.3]
[1746095220858,6.5835,151.88,151.85,36.8843]
[1746095221063,6.1089,151.95,151.85,30.3]
[1746095221855,6.5832,151.88,151.85,30.3]
[1746095222156,6.5832,151.88,151.85,36.8841]
[1746095223464,6.5828,151.89,151.86,6.584]
[1746095223657,6.1089,151.95,151.85,30.3]
[1746095223860,30.3,151.96,151.85,30.3]
[1746095224059,6.5814,151.92,151.89,6.5825]
[1746095224253,30.3,151.96,151.86,7.79550049]
[1746095224752,30.3,151.96,151.87,6.5833]
[1746095224958,30.3,151.96,151.85,30.3]
[1746095224959,38.09550049,151.96,151.85,30.3]
[1746095225164,6.5824,151.9,151.86,6.5837]
[1746095225562,6.5824,151.9,151.85,30.3]
[1746095225765,6.582,151.91,151.88,6.583]
[1746095226267,38.09550049,151.96,151.88,6.583]
[1746095226766,6.5817,151.92,151.89,6.5826]
[1746095227061,6.5817,151.92,151.85,30.3]
[1746095227252,30.3,151.96,151.85,30.3]
[1746095227456,6.5821,151.91,151.85,30.3]
[1746095228064,6.5821,151.91,151.87,6.5833]
[1746095228365,36.2709,151.96,151.85,30.3]
[1746095228660,6.5825,151.9,151.86,6.5838]
[1746095229765,6.5825,151.9,151.85,30.3]
[1746095229952,6.5825,151.9,151.87,6.5833]
[1746095230157,36.2709,151.96,151.85,30.3]
[1746095230766,36.2709,151.96,151.88,6.5827]
[1746095230965,36.2709,151.96,151.85,30.3]
[1746095231354,6.5816,151.92,151.88,6.583]
[1746095231660,6.5816,151.92,151.85,30.3]
[1746095231867,6.5816,151.92,151.88,6.5827]
[1746095232061,6.5816,151.92,151.85,30.3]
[1746095232254,6.5811,151.93,151.85,30.3]
[1746095232457,36.2709,151.96,151.89,6.5825]
[1746095232962,6.5818,151.92,151.89,6.5825]
[1746095233263,36.2709,151.96,151.88,6.5829]
[1746095233766,6.5815,151.92,151.89,6.5826]
[1746095233967,30.3,151.96,151.86,7.79550049]
[1746095234263,6.5811,151.93,151.9,6.5819]
[1746095234863,6.5807,151.94,151.91,6.5817]
[1746095235063,6.5807,151.94,151.88,30.04]
[1746095235356,30.3,151.96,151.88,30.04]
[1746095235558,6.5808,151.94,151.9,6.5819]
[1746095235768,30.3,151.96,151.9,6.5819]
[1746095236068,6.5811,151.93,151.9,6.5819]
[1746095236259,30.3,151.96,151.89,6.5825]
[1746095237069,6.5811,151.93,151.88,30.04]
[1746095237366,35.9784,152.0,151.88,30.04]
[1746095237573,6.5784,151.99,151.93,6.5805]
[1746095237868,6.5784,151.99,151.89,9.76570049]
[1746095237869,6.5784,151.99,151.92,30.04]
[1746095238170,34.0536,152.0,151.92,30.04]
[1746095238670,6.58,151.96,151.91,6.5818]
[1746095238872,7.79550049,151.98,151.91,6.5818]
[1746095239269,6.5801,151.95,151.91,6.5818]
[1746095239873,6.5795,151.97,151.92,6.5814]
[1746095243476,34.0536,152.0,151.9,1.9972]
[1746095243775,6.5787,151.99,151.94,6.5802]
[1746095244575,34.0536,152.0,151.89,1.9702]
[1746095245176,6.5801,151.95,151.91,6.5815]
[1746095246376,34.0536,152.0,151.92,6.5812]
[1746095246578,34.0536,152.0,151.89,1.9702]
[1746095247176,6.5804,151.95,151.91,6.5816]
[1746095247376,34.0536,152.0,151.89,1.9702]
[1746095247872,6.5806,151.94,151.9,6.5819]
[1746095248072,30.02,151.96,151.87,30.02]
[1746095248282,7.79550049,151.95,151.87,30.02]
[1746095248471,6.5816,151.92,151.88,6.583]
[1746095248975,6.5816,151.92,151.89,6.5826]
[1746095249176,6.5816,151.92,151.87,30.02]
[1746095249687,6.5823,151.9,151.85,3.8498]
[1746095250188,6.5823,151.9,151.86,6.5836]
[1746095250593,9.89140049,151.95,151.87,6.5835]
[1746095251087,6.5821,151.91,151.87,6.5835]
[1746095251886,6.5823,151.9,151.87,6.5835]
[1746095252587,6.5827,151.89,151.85,3.8498]
[1746095252790,29.5,151.92,151.84,32.044]
[1746095252985,29.5,151.92,151.84,30.02]
[1746095253490,29.5,151.92,151.84,36.6045]
[1746095253882,29.5,151.92,151.84,6.5845]
[1746095254394,6.5834,151.88,151.84,6.5845]
[1746095254793,29.5,151.92,151.84,6.5845]
[1746095255088,29.5,151.92,151.87,6.5835]
[1746095255293,29.5,151.92,151.82,29.5]
[1746095255787,6.5829,151.89,151.85,6.5842]
[1746095256794,29.5,151.92,151.84,6.5847]
[1746095257095,29.5,151.92,151.82,29.5]
[1746095257992,6.5842,151.86,151.82,36.0856]
[1746095258191,29.5,151.92,151.82,29.5]
[1746095258388,12.48235507,151.9,151.78,7.71686582]
[1746095258688,1.9437,151.89,151.78,37.21686582]
[1746095258886,6.5852,151.84,151.78,37.21686582]
[1746095259499,33.5368,151.88,151.8,6.5862]
[1746095259500,6.5854,151.83,151.8,6.5862]
[1746095260197,33.5368,151.88,151.78,37.21686582]
[1746095260600,31.434,151.88,151.78,37.21686582]
[1746095260800,1.934,151.92,151.8,12.48235507]
[1746095260991,1.934,151.92,151.81,4.0358]
[1746095261192,6.583,151.89,151.85,6.5842]
[1746095261589,6.5818,151.91,151.85,6.5842]
[1746095262095,6.5818,151.91,151.86,6.5839]
[1746095262593,8.5155,151.92,151.86,6.5839]
[1746095262795,2.1028,151.93,151.83,2.0479]
[1746095262992,8.6841,151.93,151.83,2.0479]
[1746095263291,2.1028,151.93,151.86,6.5836]
[1746095263493,2.1028,151.93,151.83,2.0479]
[1746095263698,6.5817,151.92,151.83,2.0479]
[1746095264291,8.6838,151.93,151.83,2.0479]
[1746095264492,2.1028,151.93,151.83,2.0479]
[1746095264804,2.1028,151.93,151.88,6.5831]
[1746095265100,6.5814,151.92,151.88,6.5831]
[1746095266202,6.5814,151.92,151.89,6.5826]
[1746095267996,2.1028,151.93,151.83,2.0479]
[1746095269505,36.1006,151.94,151.83,2.0479]
[1746095269804,36.1006,151.94,151.9,6.5819]
[1746095270805,29.52,151.94,151.87,29.52]
[1746095271003,29.52,151.94,151.91,6.5815]
[1746095271605,36.1006,151.94,151.91,6.5815]
[1746095271802,36.1006,151.94,151.9,6.5821]
[1746095274309,8.5964,151.96,151.87,29.52]
[1746095274511,2.0165,151.96,151.88,2.0669]
[1746095275309,6.5801,151.95,151.91,6.5816]
[1746095275508,6.5801,151.95,151.88,2.0669]
[1746095275806,6.5801,151.95,151.91,6.5815]
[1746095276000,6.5801,151.95,151.88,2.0669]
[1746095276201,6.5801,151.95,151.91,6.5815]
[1746095276509,2.0165,151.96,151.88,2.0669]
[1746095277010,2.0165,151.96,151.9,6.5821]
[1746095277308,2.0165,151.96,151.88,2.0669]
[1746095277512,9.81764963,151.96,151.87,29.52]
[1746095277696,6.5817,151.92,151.88,6.5829]
[1746095278411,6.5819,151.91,151.88,6.5829]
[1746095278709,9.81764963,151.96,151.89,6.5826]
[1746095278908,6.5815,151.92,151.87,29.52]
[1746095279311,6.5815,151.92,151.88,6.5828]
[1746095279816,6.5815,151.92,151.89,6.5826]
[1746095280110,6.5811,151.93,151.89,6.5826]
[1746095280313,9.81764963,151.96,151.89,6.5826]
[1746095280511,6.5813,151.93,151.89,6.5826]
[1746095281209,2.0165,151.96,151.87,29.52]
[1746095281519,2.0165,151.96,151.84,31.0423]
[1746095281711,6.5818,151.91,151.87,6.5833]
[1746095282213,6.5815,151.92,151.89,6.5827]
[1746095282513,2.0165,151.96,151.84,31.0423]
[1746095282914,6.5818,151.92,151.88,6.5829]
[1746095283121,2.0165,151.96,151.84,31.0423]
[1746095283311,7.80114963,151.95,151.84,31.0423]
[1746095283816,2.0165,151.96,151.85,7.80114963]
[1746095284005,2.0165,151.96,151.87,6.5833]
[1746095284211,7.80114963,151.95,151.84,31.0423]
[1746095284618,6.5825,151.9,151.84,31.0423]
[1746095284819,7.80114963,151.95,151.84,31.0423]
[1746095285313,6.5821,151.91,151.88,6.5831]
[1746095285617,2.0165,151.96,151.84,31.0423]
[1746095285813,6.5816,151.92,151.84,31.0423]
[1746095286118,6.5816,151.92,151.88,6.5827]
[1746095286317,6.5816,151.92,151.84,31.0423]
[1746095286518,7.80114963,151.97,151.84,31.0423]
[1746095287016,20.95974963,151.97,151.84,31.0423]
[1746095287315,7.80114963,151.94,151.84,31.0423]
[1746095287515,28.98,151.93,151.85,6.5842]
[1746095287710,28.98,151.93,151.84,31.0423]
[1746095287910,28.98,151.93,151.87,6.5835]
[1746095288111,28.98,151.93,151.84,31.0423]
[1746095288818,6.582,151.91,151.87,6.5835]
[1746095290318,28.98,151.93,151.84,31.0423]
[1746095290618,32.9316,151.93,151.84,31.0423]
[1746095291015,2.0501,151.92,151.84,31.0423]
[1746095291218,2.0501,151.92,151.84,37.6267]
[1746095291414,288.52736403,151.98,151.84,38.84344963]
[1746095291716,34.9817,151.99,151.87,7.80114963]
[1746095291922,34.9817,151.99,151.88,28.98]
[1746095292222,6.5799,151.96,151.91,6.5818]
[1746095292418,34.9817,151.99,151.91,6.5818]
[1746095292620,34.9817,151.99,151.88,28.98]
[1746095292822,6.5798,151.96,151.91,6.5814]
[1746095293018,34.9817,151.99,151.91,6.5814]